bitfinex-derivatives/quotes_SOLF0:USTF0_20241203
["timestamp","ask_amount","ask_price","bid_price","bid_amount"]
[1733191942272,2.24,223.97,223.86,2.6299]
[1733191942476,2.2327,223.91,223.86,4.863]
[1733191942674,2.24,223.93,223.9,6.73526583]
[1733191942871,2.24,223.92,223.9,6.73526583]
[1733191943476,2.2327,223.91,223.9,6.73526583]
[1733191944379,2.24,223.92,223.9,6.73526583]
[1733191949072,2.2327,223.91,223.9,6.73526583]
[1733191949277,2.24,223.92,223.9,6.73526583]
[1733191949674,4.4726,223.92,223.87,2.233]
[1733191950481,4.4726,223.92,223.91,6.73526583]
[1733191953189,2.2327,223.91,223.86,2.6299]
[1733191953485,2.24,223.92,223.9,6.73526583]
[1733191954275,2.24,223.92,223.86,2.6299]
[1733191954481,8.97526583,223.92,223.76,4.0879]
[1733191954682,2.233,223.88,223.83,6.73526583]
[1733191954984,2.24,223.87,223.83,6.73526583]
[1733191955381,2.2333,223.85,223.83,6.73526583]
[1733191956088,2.24,223.87,223.85,2.2332]
[1733191956283,2.24,223.87,223.86,6.73526583]
[1733191956785,2.24,223.87,223.86,8.96846583]
[1733191957088,2.24,223.9,223.86,6.73526583]
[1733191957284,2.24,223.9,223.89,6.73526583]
[1733191958882,2.24,223.9,223.89,8.96816583]
[1733191961090,2.24,223.94,223.89,6.73526583]
[1733191961390,2.24,223.95,223.94,6.73526583]
[1733191961687,2.24,223.96,223.94,6.73526583]
[1733191962187,2.24,223.96,223.86,1.3308]
[1733191962388,2.24,223.96,223.91,6.73526583]
[1733191963090,2.24,223.96,223.93,6.73526583]
[1733191963289,2.2323,223.95,223.93,6.73526583]
[1733191963792,4.4722,223.96,223.93,6.73526583]
[1733191965293,2.24,223.96,223.93,6.73526583]
[1733191965482,2.232,223.98,223.95,6.73526583]
[1733191965686,2.24,223.98,223.97,6.73526583]
[1733191966587,2.24,223.98,223.95,6.73526583]
[1733191966890,4.472,223.98,223.95,6.73526583]
[1733191968388,2.2325,223.93,223.89,6.73526583]
[1733191968587,2.24,223.93,223.91,6.73526583]
[1733191971389,2.24,223.98,223.91,6.73526583]
[1733191971590,2.24,223.98,223.95,6.73526583]
[1733191971591,4.472,223.98,223.95,6.73526583]
[1733191971785,2.24,223.98,223.95,6.73526583]
[1733191972492,2.24,223.98,223.93,8.96766583]
[1733191973090,2.2321,223.97,223.93,8.96766583]
[1733191975192,2.24,223.98,223.96,6.73526583]
[1733191976293,4.472,223.98,223.96,6.73526583]
[1733191978394,4.472,223.98,223.94,8.96756583]
[1733191983901,4.472,223.98,223.96,6.73526583]
[1733191986697,2.24,223.98,223.96,6.73526583]
[1733191986897,2.24,223.99,223.97,2.2321]
[1733191987098,2.24,223.99,223.98,6.73526583]
[1733191987700,2.24,223.99,223.98,8.96726583]
[1733191988397,339.17103534,224.13,223.98,6.73526583]
[1733191988604,6.73526583,224.1,224.03,6.73526583]
[1733191988798,2.24,224.07,224.03,6.73526583]
[1733191989006,2.24,224.07,224.01,6.73526583]
[1733191990809,2.24,224.07,224.03,6.73526583]
[1733191991311,2.24,224.09,224.05,6.73526583]
[1733191991504,2.24,224.09,224.07,6.73526583]
[1733191991906,4.4709,224.09,224.07,6.73526583]
[1733191994614,2.231,224.08,224.07,6.73526583]
[1733191995713,4.4709,224.09,224.07,6.73526583]
[1733191998813,2.24,224.09,224.07,6.73526583]
[1733192002718,4.4709,224.09,224.07,6.73526583]
[1733192004014,2.24,224.09,223.96,3.53159927]
[1733192004214,2.24,224.09,223.96,3.5495]
[1733192004420,2.24,224.09,224.05,6.73526583]
[1733192005324,2.2312,224.06,224.05,6.73526583]
[1733192005722,2.24,224.09,224.05,6.73526583]
[1733192005922,2.231,224.08,224.05,6.73526583]
[1733192006232,2.24,224.09,224.07,6.73526583]
[1733192008036,2.231,224.08,224.07,6.73526583]
[1733192008838,2.24,224.09,224.06,6.73526583]
[1733192010043,2.2312,224.07,224.06,6.73526583]
[1733192014935,2.231,224.08,224.06,6.73526583]
[1733192017045,2.83978,224.11,224.06,8.96636583]
[1733192017240,2.82898,224.11,224.1,6.73526583]
[1733192017645,4.4507,224.11,224.1,6.73526583]
[1733192018843,2.2305,224.13,224.1,6.73526583]
[1733192019042,4.4505,224.13,224.12,6.73526583]
[1733192020640,2.2304,224.14,224.12,6.73526583]
[1733192020841,4.4504,224.14,224.12,6.73526583]
[1733192021644,2.22,224.14,224.12,6.73526583]
[1733192022449,4.4504,224.14,224.12,6.73526583]
[1733192022847,2.22,224.14,224.12,6.73526583]
[1733192024051,2.2303,224.15,224.12,6.73526583]
[1733192024343,2.2303,224.15,224.14,6.73526583]
[1733192026748,2.22,224.16,224.12,6.73526583]
[1733192026953,2.22,224.16,224.1,6.73526583]
[1733192027348,2.2303,224.15,224.1,6.73526583]
[1733192027650,2.22,224.16,224.1,6.73526583]
[1733192028256,2.2306,224.12,224.1,6.73526583]
[1733192028453,2.22,224.11,224.1,6.73526583]
[1733192028645,2.22,224.11,224.08,6.73526583]
[1733192029153,2.2308,224.1,224.08,6.73526583]
[1733192030153,4.4507,224.11,224.08,6.73526583]
[1733192030347,4.4507,224.11,224.1,6.73526583]
[1733192031655,2.2304,224.14,224.1,6.73526583]
[1733192031858,2.22,224.15,224.13,6.73526583]
[1733192034253,4.4503,224.15,224.13,6.73526583]
[1733192036461,2.2304,224.14,224.13,6.73526583]
[1733192037560,2.22,224.15,224.1,6.73526583]
[1733192038262,2.2307,224.11,224.1,6.73526583]
[1733192039454,2.2306,224.12,224.1,6.73526583]
[1733192039765,2.22,224.15,224.11,6.73526583]
[1733192040167,2.2305,224.13,224.11,6.73526583]
[1733192040460,2.22,224.15,224.11,6.73526583]
[1733192041067,2.2308,224.11,224.09,6.73526583]
[1733192042859,2.2305,224.13,224.09,6.73526583]
[1733192043062,2.22,224.15,224.12,6.73526583]
[1733192043367,2.22,224.15,224.14,6.73526583]
[1733192046571,4.4503,224.15,224.14,6.73526583]
[1733192046767,2.22,224.15,224.12,6.73526583]
[1733192047568,2.2305,224.13,224.12,6.73526583]
[1733192047770,2.22,224.15,224.06,3.9649]
[1733192047965,2.22,224.15,224.09,6.73526583]
[1733192049071,2.2309,224.1,224.09,6.73526583]
[1733192049474,4.4509,224.1,224.09,6.73526583]
[1733192052267,2.22,224.1,224.09,6.73526583]
[1733192055577,2.22,224.1,224.09,8.96616583]
[1733192056375,2.22,224.1,224.09,6.73526583]
[1733192062073,2.22,224.1,224.09,8.96616583]
[1733192062676,2.22,224.1,224.06,2.6305]
[1733192062880,2.22,224.1,223.99,2.22]
[1733192063083,2.22,224.1,224.07,6.73526583]
[1733192063278,2.22,224.1,224.0,2.6543]
[1733192063279,2.2313,224.05,224.04,6.73526583]
[1733192063485,4.4513,224.05,224.04,6.73526583]
[1733192063982,2.22,224.05,224.04,6.73526583]
[1733192064383,2.22,224.05,224.04,8.96666583]
[1733192064573,2.22,224.05,224.04,6.73526583]
[1733192066486,2.22,224.05,224.04,8.96666583]
[1733192067676,2.22,224.05,224.04,6.73526583]
[1733192074694,2.22,224.05,224.0,2.6543]
[1733192074895,4.4513,224.05,224.02,8.96676583]
[1733192075294,4.4513,224.05,224.02,2.2315]
[1733192075489,4.4513,224.05,224.02,8.96676583]
[1733192075696,4.4513,224.05,224.02,2.2315]
[1733192075995,4.4513,224.05,224.02,8.96676583]
[1733192077300,4.4513,224.05,224.04,6.73526583]
[1733192077301,2.22,224.05,224.04,6.73526583]
[1733192084598,2.22,224.05,224.04,16.73526583]
[1733192085595,2.22,224.08,224.06,2.2311]
[1733192085894,2.22,224.08,224.06,6.73526583]
[1733192086100,2.22,224.08,224.07,2.2311]
[1733192090801,2.22,224.08,224.07,8.96636583]
[1733192100801,2.22,224.08,224.04,10.0]
[1733192101303,2.22,224.08,224.06,6.73526583]
[1733192102707,2.22,224.08,224.06,8.96636583]
[1733192102907,1.3869,224.19,224.06,6.73526583]
[1733192103104,1.3869,224.19,224.13,6.73526583]
[1733192103301,2.22,224.18,224.13,6.73526583]
[1733192103906,2.22,224.18,224.11,6.73526583]
[1733192104108,2.2302,224.16,224.11,6.73526583]
[1733192104301,2.22,224.18,224.11,6.73526583]
[1733192104706,2.2303,224.15,224.11,8.96586583]
[1733192105608,0.77758,224.2,224.13,6.73526583]
[1733192105910,2.22,224.19,224.05,3.6303]
[1733192106215,0.77758,224.2,224.05,3.6303]
[1733192106402,0.77758,224.2,224.19,6.73526583]
[1733192106908,0.77758,224.2,224.19,8.96516583]
[1733192107111,0.77758,224.2,224.19,6.73526583]
[1733192107716,0.77758,224.2,224.05,3.6303]
[1733192107906,0.77758,224.2,224.15,6.73526583]
[1733192108205,0.77758,224.2,224.17,6.73526583]
[1733192108508,0.77758,224.2,224.19,6.73526583]
[1733192110514,0.77758,224.2,224.19,4.73125807]
[1733192111813,0.77758,224.2,224.13,6.73526583]
[1733192112210,2.23,224.18,224.13,8.96566583]
[1733192112714,2.2302,224.16,224.13,6.73526583]
[1733192112910,2.22,224.15,224.13,6.73526583]
[1733192113105,2.22,224.15,224.1,6.73526583]
[1733192113308,2.2302,224.14,224.1,6.73526583]
[1733192113508,2.22,224.15,224.12,6.73526583]
[1733192113714,2.22,224.15,224.14,6.73526583]
[1733192114913,2.22,224.15,224.14,8.96546583]
[1733192115413,2.22,224.19,224.14,6.73526583]
[1733192115611,2.22,224.19,224.17,6.73526583]
[1733192116812,0.77758,224.2,224.17,6.73526583]
[1733192117111,0.77758,224.2,224.08,4.92179457]
[1733192117112,2.22,224.29,224.19,6.73526583]
[1733192117308,2.229,224.26,224.23,6.73526583]
[1733192117510,2.229,224.26,224.23,4.77231834]
[1733192120517,2.22,224.27,224.2,6.73526583]
[1733192120818,2.22,224.27,224.24,6.73526583]
[1733192121721,2.22,224.27,224.22,6.73526583]
[1733192121917,2.2291,224.25,224.22,6.73526583]
[1733192122813,2.2291,224.25,224.24,6.73526583]
[1733192125323,2.2291,224.25,224.24,4.79317377]
[1733192126019,2.229,224.26,224.24,4.79317377]
[1733192126223,2.22,224.27,224.24,4.79317377]
[1733192126822,6.73526583,224.32,224.26,6.73526583]
[1733192127021,2.22,224.31,224.26,6.73526583]
[1733192127221,2.22,224.32,224.28,6.73526583]
[1733192127519,2.22,224.32,224.29,6.73526583]
[1733192128120,4.4484,224.32,224.29,6.73526583]
[1733192128817,2.2284,224.32,224.29,6.73526583]
[1733192129020,2.2284,224.32,224.31,6.73526583]
[1733192129422,2.2284,224.32,224.31,4.2043784]
[1733192129819,2.22,224.34,224.31,4.2043784]
[1733192130123,2.22,224.34,224.33,6.73526583]
[1733192131122,2.228,224.36,224.33,6.73526583]
[1733192131324,2.228,224.36,224.35,6.73526583]
[1733192131621,2.228,224.36,224.25,4.0665]
[1733192131821,2.228,224.36,224.35,6.73526583]
[1733192132619,1.13301,224.37,224.35,6.73526583]
[1733192134116,1.13301,224.37,224.36,2.228]
[1733192135421,2.22,224.45,224.43,6.73526583]
[1733192135627,2.22,224.47,224.45,6.73526583]
[1733192135820,2.22,224.48,224.45,6.73526583]
[1733192136127,1.2883,224.54,224.47,6.73526583]
[1733192136128,2.22,224.49,224.47,6.73526583]
[1733192136720,2.2268,224.48,224.47,6.73526583]
[1733192139527,2.22,224.49,224.47,6.73526583]
[1733192140322,4.4467,224.49,224.47,4.88273491]
[1733192140526,2.22,224.49,224.47,4.88273491]
[1733192140929,4.4467,224.49,224.47,4.88273491]
[1733192141933,2.22,224.49,224.47,4.88273491]
[1733192142224,1.2883,224.54,224.47,4.88273491]
[1733192142426,34.48520278,224.55,224.52,6.73526583]
[1733192142626,46.4,224.59,224.53,6.73526583]
[1733192142627,2.2,224.54,224.53,6.73526583]
[1733192142822,2.2262,224.54,224.53,6.73526583]
[1733192144329,4.4261,224.55,224.53,6.73526583]
[1733192144832,2.2,224.55,224.53,6.73526583]
[1733192145036,2.2262,224.54,224.53,6.73526583]
[1733192145934,2.2,224.55,224.53,6.73526583]
[1733192147733,2.2259,224.58,224.53,6.73526583]
[1733192147928,2.2259,224.58,224.57,6.73526583]
[1733192148434,2.2,224.59,224.57,6.73526583]
[1733192148834,2.2,224.62,224.57,6.73526583]
[1733192149030,365.55030979,224.83,224.61,6.73526583]
[1733192149236,2.2247,224.69,224.68,6.73526583]
[1733192150341,2.6807,224.77,224.68,6.73526583]
[1733192150535,2.2,224.78,224.75,6.73526583]
[1733192151134,2.2236,224.8,224.77,6.73526583]
[1733192151331,2.2,224.81,224.77,6.73526583]
[1733192151537,2.2,224.81,224.74,10.45911793]
[1733192151934,2.2237,224.79,224.74,10.45911793]
[1733192154538,2.2,224.81,224.71,10.45911793]
[1733192156141,2.2241,224.76,224.71,10.45911793]
[1733192157037,2.2242,224.75,224.71,10.45911793]
[1733192157437,2.2,224.75,224.68,10.45911793]
[1733192157635,2.2245,224.72,224.68,10.45911793]
[1733192159036,2.2,224.75,224.68,10.45911793]
[1733192159237,2.2,224.75,224.65,10.45911793]
[1733192159847,2.2247,224.71,224.65,10.45911793]
[1733192160043,2.2,224.7,224.65,10.45911793]
[1733192160444,4.4248,224.7,224.65,10.45911793]
[1733192160749,2.2,224.7,224.65,10.45911793]
[1733192161244,2.2,224.76,224.68,10.45911793]
[1733192161548,2.2,224.77,224.72,10.45911793]
[1733192161743,2.2,224.78,224.72,10.45911793]
[1733192163041,4.4239,224.78,224.72,10.45911793]
[1733192163244,1.331,224.82,224.75,10.45911793]
[1733192163448,2.2239,224.79,224.75,10.45911793]
[1733192163842,2.2,224.81,224.75,10.45911793]
[1733192164246,2.2238,224.8,224.75,10.45911793]
[1733192164446,2.2,224.81,224.75,10.45911793]
[1733192164852,2.2241,224.76,224.72,10.45911793]
[1733192165152,2.2,224.76,224.69,10.45911793]
[1733192165748,2.2,224.76,224.75,10.45911793]
[1733192165955,2.2,224.8,224.75,10.45911793]
[1733192166151,2.2239,224.79,224.75,10.45911793]
[1733192168553,2.2239,224.78,224.75,10.45911793]
[1733192169447,2.2,224.8,224.72,10.45911793]
[1733192170050,2.2242,224.76,224.72,10.45911793]
[1733192170351,2.2,224.8,224.73,10.45911793]
[1733192170554,2.2,224.81,224.78,10.45911793]
[1733192170951,2.2,224.82,224.78,10.45911793]
[1733192171255,46.36,224.88,224.81,10.45911793]
[1733192171453,2.2,224.87,224.81,10.45911793]
[1733192172556,2.2,224.87,224.78,10.45911793]
[1733192173651,2.2234,224.84,224.79,2.2238]
[1733192175753,2.2232,224.86,224.81,12.68271793]
[1733192176055,2.2,224.87,224.81,10.45911793]
[1733192176256,2.2233,224.85,224.81,10.45911793]
[1733192176756,2.2234,224.84,224.79,2.2238]
[1733192177154,2.2234,224.84,224.81,10.45911793]
[1733192178054,2.2233,224.85,224.81,10.45911793]
[1733192178961,2.2234,224.84,224.81,10.45911793]
[1733192179253,1.3543,224.93,224.81,10.45911793]
[1733192179459,2.2,224.92,224.81,12.68271793]
[1733192179659,2.2,224.92,224.81,10.45911793]
[1733192180249,2.2229,224.89,224.81,10.45911793]
[1733192180454,2.2,224.92,224.81,10.45911793]
[1733192181056,2.2234,224.84,224.81,10.45911793]
[1733192181263,2.2,224.85,224.81,10.45911793]
[1733192181662,2.2234,224.84,224.81,10.45911793]
[1733192182467,2.2,224.85,224.78,10.45911793]
[1733192182853,2.2239,224.78,224.75,10.45911793]
[1733192183060,2.2,224.79,224.75,10.45911793]
[1733192183364,2.2,224.78,224.75,10.45911793]
[1733192183563,4.424,224.78,224.75,10.45911793]
[1733192184156,2.2,224.78,224.75,10.45911793]
[1733192184755,2.2,224.82,224.75,10.45911793]
[1733192184955,2.2237,224.81,224.78,10.45911793]
[1733192185152,2.2,224.83,224.78,10.45911793]
[1733192185657,4.4235,224.83,224.81,10.45911793]
[1733192185962,2.2,224.83,224.81,10.45911793]
[1733192187063,2.2,224.83,224.81,12.68271793]
[1733192187258,2.2232,224.86,224.81,12.68271793]
[1733192187259,2.2232,224.86,224.81,10.45911793]
[1733192187455,2.2,224.87,224.84,10.45911793]
[1733192188264,2.2233,224.85,224.81,10.45911793]
[1733192188566,2.2,224.87,224.81,10.45911793]
[1733192189859,2.2235,224.83,224.81,10.45911793]
[1733192190064,2.2,224.87,224.78,11.80311793]
[1733192190360,2.2,224.87,224.78,14.02701793]
[1733192190563,2.2234,224.84,224.78,3.5679]
[1733192190759,2.2234,224.84,224.81,10.45911793]
[1733192190960,2.2,224.87,224.81,10.45911793]
[1733192191759,0.21665,224.9,224.84,10.45911793]
[1733192191965,0.21665,224.9,224.84,7.20252724]
[1733192193467,2.2231,224.87,224.84,7.20252724]
[1733192193666,0.21665,224.9,224.84,7.20252724]
[1733192193966,2.2233,224.85,224.81,12.68271793]
[1733192195667,2.2,224.86,224.81,10.45911793]
[1733192195668,2.2234,224.84,224.81,10.45911793]
[1733192196266,2.2234,224.84,224.81,12.68271793]
[1733192196469,2.2,224.86,224.81,12.68271793]
[1733192196659,2.2233,224.85,224.81,12.68271793]
[1733192197262,2.2233,224.85,224.84,10.45911793]
[1733192203066,2.2,224.88,224.81,10.45911793]
[1733192203265,2.2236,224.82,224.81,10.45911793]
[1733192204874,2.2,224.88,224.81,10.45911793]
[1733192205069,2.2233,224.85,224.81,10.45911793]
[1733192205473,2.2233,224.85,224.84,10.45911793]
[1733192205973,2.2232,224.86,224.84,10.45911793]
[1733192206172,2.2,224.88,224.84,7.25391752]
[1733192206970,2.2232,224.86,224.84,7.25391752]
[1733192207167,2.2,224.89,224.84,7.25391752]
[1733192207768,4.4229,224.89,224.84,9.47721752]
[1733192208372,2.2,224.89,224.84,7.25391752]
[1733192208676,2.2231,224.87,224.84,7.25391752]
[1733192209479,4.4229,224.89,224.84,17.25391752]
[1733192209870,2.2,224.89,224.87,10.45911793]
[1733192210880,2.2228,224.9,224.87,10.45911793]
[1733192211582,2.2,224.93,224.84,20.45911793]
[1733192212175,2.2232,224.86,224.84,20.45911793]
[1733192212777,2.2232,224.85,224.84,20.45911793]
[1733192214879,2.2232,224.85,224.84,10.0]
[1733192216085,2.2232,224.85,224.84,6.98449769]
[1733192217684,2.2238,224.79,224.78,11.80311793]
[1733192219286,2.224,224.78,224.75,10.45911793]
[1733192220089,2.2239,224.79,224.75,10.45911793]
[1733192220489,2.2,224.82,224.75,10.45911793]
[1733192220789,2.224,224.77,224.75,10.45911793]
[1733192220989,2.2,224.82,224.75,10.45911793]
[1733192221689,2.224,224.78,224.75,10.45911793]
[1733192221891,2.2,224.82,224.75,10.45911793]
[1733192222888,2.224,224.78,224.75,10.45911793]
[1733192224390,2.2,224.82,224.75,10.45911793]
[1733192224593,2.2,224.82,224.73,10.45911793]
[1733192224594,304.62525816,224.91,224.79,10.45911793]
[1733192224786,2.2,224.9,224.84,10.45911793]
[1733192225491,2.223,224.88,224.87,10.45911793]
[1733192226985,2.2227,224.91,224.87,10.45911793]
[1733192227391,2.2,224.92,224.87,10.45911793]
[1733192227587,2.2231,224.86,224.83,10.45911793]
[1733192228295,2.2,224.92,224.83,10.45911793]
[1733192229096,2.223,224.87,224.83,10.45911793]
[1733192232192,2.2,224.92,224.83,10.45911793]
[1733192232796,2.2231,224.87,224.83,10.45911793]
[1733192233000,34.42269766,224.98,224.86,10.45911793]
[1733192233196,2.2,224.99,224.92,10.45911793]
[1733192233500,2.60377,225.0,224.92,10.45911793]
[1733192233995,2.60377,225.0,224.95,10.45911793]
[1733192235099,2.2217,224.99,224.95,10.45911793]
[1733192235702,2.2219,224.97,224.95,10.45911793]
[1733192235895,2.60377,225.0,224.95,10.45911793]
[1733192236594,2.60377,225.0,224.92,10.45911793]
[1733192236798,2.2222,224.95,224.92,10.45911793]
[1733192237399,2.60377,225.0,224.92,10.45911793]
[1733192238900,2.2221,224.96,224.92,10.45911793]
[1733192239202,2.60377,225.0,224.92,10.45911793]
[1733192239401,2.2221,224.95,224.92,10.45911793]
[1733192239602,2.60377,225.0,224.92,10.45911793]
[1733192239800,2.60377,225.0,224.89,1.4009]
[1733192240103,2.2226,224.9,224.89,1.4009]
[1733192240699,2.2225,224.91,224.89,1.4009]
[1733192241399,2.2,224.93,224.89,1.4009]
[1733192241400,4.4224,224.93,224.89,1.4009]
[1733192241696,4.4224,224.93,224.9,10.45911793]
[1733192242299,2.2,224.93,224.9,12.68171793]
[1733192244501,2.2222,224.94,224.9,12.68171793]
[1733192244701,2.2,224.99,224.93,12.68141793]
[1733192244901,2.222,224.97,224.93,12.68141793]
[1733192246202,2.222,224.96,224.93,10.45911793]
[1733192246406,2.2,224.99,224.9,10.45911793]
[1733192246903,2.2224,224.93,224.9,10.45911793]
[1733192248411,2.2223,224.93,224.9,10.45911793]
[1733192249300,2.2222,224.94,224.9,10.45911793]
[1733192249709,2.2222,224.94,224.9,12.68171793]
[1733192250509,2.2,224.99,224.9,10.45911793]
[1733192250909,2.2,224.99,224.93,10.45911793]
[1733192252109,2.2219,224.97,224.93,12.68131793]
[1733192252906,2.2,225.02,224.96,10.45911793]
[1733192253112,1.2965,225.08,224.96,10.45911793]
[1733192253310,2.2,225.07,224.96,10.45911793]
[1733192253514,2.2215,225.02,224.99,10.45911793]
[1733192253707,2.2215,225.02,224.91,1.3008]
[1733192254012,2.2215,225.02,224.99,10.45911793]
[1733192257607,2.2216,225.01,224.99,10.45911793]
[1733192258413,2.2216,225.0,224.96,12.68111793]
[1733192259209,2.2219,224.98,224.96,10.45911793]
[1733192259711,2.2217,225.0,224.96,10.45911793]
[1733192260012,2.2,225.02,224.96,10.45911793]
[1733192260311,1.2965,225.08,224.91,3.5008]
[1733192260515,2.2,225.07,225.02,10.45911793]
[1733192260814,2.2,225.07,224.95,10.45911793]
[1733192260815,1.383,225.1,224.97,1.3891]
[1733192261017,2.2,225.09,225.03,10.45911793]
[1733192261807,2.221,225.06,225.03,10.45911793]
[1733192262013,2.2,225.09,225.03,10.45911793]
[1733192262209,305.92765816,225.14,224.97,1.3891]
[1733192262210,23.72034341,225.17,225.06,10.45911793]
[1733192262416,2.2,225.12,225.06,10.45911793]
[1733192263013,2.2206,225.1,225.06,10.45911793]
[1733192263210,2.2,225.12,225.06,10.45911793]
[1733192263615,2.84248,225.11,225.06,12.68011793]
[1733192264813,2.2206,225.1,225.06,10.45911793]
[1733192265918,0.62188,225.11,225.09,10.45911793]
[1733192267022,2.84238,225.11,225.09,10.45911793]
[1733192268019,0.62188,225.11,225.09,10.45911793]
[1733192268220,0.62188,225.11,225.09,12.67981793]
[1733192268418,0.62188,225.11,225.09,10.45911793]
[1733192270223,0.62188,225.11,225.1,2.2206]
[1733192271023,0.62188,225.11,225.09,10.45911793]
[1733192272121,0.62188,225.11,225.1,2.2206]
[1733192272520,2.2202,225.15,225.1,2.2206]
[1733192272723,2.2202,225.15,225.11,2.2205]
[1733192273023,2.2202,225.15,225.09,10.45911793]
[1733192273419,2.2202,225.15,225.1,2.2206]
[1733192273620,2.18,225.18,225.1,2.2206]
[1733192273827,2.18,225.18,225.09,10.45911793]
[1733192273828,2.2204,225.13,225.09,10.45911793]
[1733192274023,2.18,225.18,225.09,10.45911793]
[1733192274224,2.18,225.18,225.07,2.8052]
[1733192274727,2.2206,225.11,225.07,2.8052]
[1733192275125,2.2206,225.11,225.07,5.0261]
[1733192276229,2.18,225.18,225.09,10.45911793]
[1733192276428,2.18,225.18,225.12,10.45911793]
[1733192276632,4.3999,225.18,225.13,2.2203]
[1733192276833,4.3999,225.18,225.12,10.45911793]
[1733192277134,4.3999,225.18,225.15,10.45911793]
[1733192277335,1.3928,225.25,225.08,2.18]
[1733192277336,2.18,225.22,225.08,2.18]
[1733192277536,2.18,225.22,225.16,10.45911793]
[1733192278035,2.2198,225.19,225.16,10.45911793]
[1733192278335,2.18,225.22,225.16,10.45911793]
[1733192278530,2.18,225.22,225.1,10.45911793]
[1733192278931,2.2202,225.15,225.1,12.67971793]
[1733192279133,2.18,225.17,225.1,10.45911793]
[1733192279734,2.18,225.17,225.11,2.2204]
[1733192279735,2.2201,225.15,225.11,2.2204]
[1733192279936,2.2201,225.15,225.1,10.45911793]
[1733192280935,2.2201,225.15,225.11,2.2205]
[1733192281132,2.2202,225.14,225.1,10.45911793]
[1733192281334,2.18,225.17,225.1,10.45911793]
[1733192283042,4.4,225.17,225.12,2.2204]
[1733192283235,4.4,225.17,225.1,10.45911793]
[1733192283236,2.18,225.17,225.1,10.45911793]
[1733192284537,2.18,225.17,225.1,12.67971793]
[1733192284738,2.18,225.17,225.1,10.45911793]
[1733192284937,2.18,225.17,225.07,11.86901793]
[1733192284938,2.2206,225.1,225.07,11.86901793]
[1733192285139,2.18,225.17,225.07,11.86901793]
[1733192285940,2.18,225.17,225.04,10.45911793]
[1733192286145,2.7696,225.16,225.04,10.45911793]
[1733192286344,2.221,225.06,225.04,10.45911793]
[1733192286741,2.18,225.08,225.04,10.45911793]
[1733192287343,2.2209,225.07,225.04,10.45911793]
[1733192288045,2.18,225.08,225.04,10.45911793]
[1733192288640,2.221,225.07,225.04,10.45911793]
[1733192289041,2.18,225.08,225.04,10.45911793]
[1733192290049,2.18,225.08,225.04,12.68021793]
[1733192290645,2.18,225.08,225.05,2.2211]
[1733192290947,2.7696,225.16,225.07,10.45911793]
[1733192291148,2.18,225.15,225.1,10.45911793]
[1733192291349,2.2203,225.14,225.1,10.45911793]
[1733192291543,2.18,225.15,225.1,10.45911793]
[1733192292950,2.18,225.15,225.02,2.18]
[1733192293146,2.18,225.15,225.06,10.45911793]
[1733192294051,2.18,225.15,225.06,12.68001793]
[1733192294652,2.2206,225.11,225.06,12.68001793]
[1733192295148,2.18,225.15,225.06,10.45911793]
[1733192295548,2.18,225.15,225.09,6.67545069]
[1733192295753,2.2206,225.1,225.09,6.67545069]
[1733192297948,4.4006,225.1,225.09,6.67545069]
[1733192298358,2.18,225.1,224.99,4.8626]
[1733192298554,2.18,225.1,225.09,6.67545069]
[1733192300153,4.4006,225.1,225.09,6.67545069]
[1733192304753,4.4006,225.1,225.04,7.2212]
[1733192304754,2.2209,225.08,225.04,7.2212]
[1733192304956,2.18,225.1,225.07,6.67545069]
[1733192306455,2.2208,225.08,225.07,6.67545069]
[1733192306652,2.18,225.1,225.04,5.0]
[1733192307053,2.2211,225.05,225.04,4.8948]
[1733192307251,4.4011,225.05,225.04,4.8948]